[Event "Titled Tuesday Blitz October 5 2021"]
[White "Majdan, Joanna"]
[Black "Deuer, Marius"]
[WhiteFideId "1121979"]
[BlackFideId "16236432"]
[WhiteElo "2270"]
[BlackElo "2091"]
[Result "0-1"]
[Round "09"]
[TimeControl "180+1"]
[Date "2021.10.05"]
[WhiteClock "0:00:25"]
[BlackClock "0:00:17"]

1. e4 {[%clk 0:02:48]}  c5 {[%clk 0:02:42]} 2. Nf3 {[%clk 0:02:45]}  e6 {[%clk 0:02:43]} 3. d4 {[%clk 0:02:45]}  cxd4 {[%clk 0:02:44]} 4. Nxd4 {[%clk 0:02:45]}  Nc6 {[%clk 0:02:45]} 5. Nc3 {[%clk 0:02:43]}  a6 {[%clk 0:02:43]} 6. Nxc6 {[%clk 0:02:43]}  bxc6 {[%clk 0:02:42]} 7. Bd3 {[%clk 0:02:44]}  e5 {[%clk 0:02:36]} 8. O-O {[%clk 0:02:43]}  Nf6 {[%clk 0:02:37]} 9. f4 {[%clk 0:02:41]}  Bc5+ {[%clk 0:02:37]} 10. Kh1 {[%clk 0:02:41]}  d6 {[%clk 0:02:32]} 11. fxe5 {[%clk 0:02:41]}  dxe5 {[%clk 0:02:32]} 12. Bg5 {[%clk 0:02:41]}  Be6 {[%clk 0:02:32]} 13. Bxf6 {[%clk 0:02:35]}  gxf6 {[%clk 0:02:33]} 14. Qh5 {[%clk 0:02:35]}  Qe7 {[%clk 0:02:23]} 15. Qh6 {[%clk 0:02:31]}  Bd4 {[%clk 0:02:09]} 16. Qg7 {[%clk 0:02:18]}  Rf8 {[%clk 0:02:03]} 17. Qxh7 {[%clk 0:02:10]}  Rb8 {[%clk 0:01:54]} 18. Bxa6 {[%clk 0:01:36]}  Qa7 {[%clk 0:01:37]} 19. Bd3 {[%clk 0:01:31]}  Rxb2 {[%clk 0:01:34]} 20. Ne2 {[%clk 0:01:31]}  Rxa2 {[%clk 0:01:32]} 21. Rxa2 {[%clk 0:01:32]}  Qxa2 {[%clk 0:01:33]} 22. Nxd4 {[%clk 0:01:33]}  exd4 {[%clk 0:01:33]} 23. Qh6 {[%clk 0:01:27]}  c5 {[%clk 0:01:14]} 24. Bb5+ {[%clk 0:01:24]}  Bd7 {[%clk 0:01:10]} 25. Qxf6 {[%clk 0:01:25]}  Bxb5 {[%clk 0:01:04]} 26. Qe5+ {[%clk 0:01:18]}  Kd7 {[%clk 0:00:55]} 27. Qxc5 {[%clk 0:00:33]}  Bxf1 {[%clk 0:00:50]} 28. Qxf8 {[%clk 0:00:33]}  Bc4 {[%clk 0:00:39]} 29. h4 {[%clk 0:00:26]}  Qb1+ {[%clk 0:00:32]} 30. Kh2 {[%clk 0:00:25]}  Qe1 {[%clk 0:00:33]} 31. Qc5 {[%clk 0:00:20]}  Qxh4+ {[%clk 0:00:31]} 32. Kg1 {[%clk 0:00:21]}  Qe1+ {[%clk 0:00:18]} 33. Kh2 {[%clk 0:00:21]}  Qc3 {[%clk 0:00:13]} 34. Qf5+ {[%clk 0:00:18]}  Ke7 {[%clk 0:00:11]} 35. Qe5+ {[%clk 0:00:18]}  Be6 {[%clk 0:00:11]} 36. Qg5+ {[%clk 0:00:18]}  Kd7 {[%clk 0:00:10]} 37. Qb5+ {[%clk 0:00:18]}  Qc6 {[%clk 0:00:11]} 38. Qe5 {[%clk 0:00:18]}  Qc7 {[%clk 0:00:10]} 39. Qxc7+ {[%clk 0:00:17]}  Kxc7 {[%clk 0:00:11]} 40. Kg3 {[%clk 0:00:18]}  Kd6 {[%clk 0:00:12]} 41. Kf4 {[%clk 0:00:19]}  Kc5 {[%clk 0:00:12]} 42. Ke5 {[%clk 0:00:18]}  Kc4 {[%clk 0:00:13]} 43. g3 {[%clk 0:00:17]}  Kc3 {[%clk 0:00:13]} 44. g4 {[%clk 0:00:15]}  Bxg4 {[%clk 0:00:13]} 45. Kf6 {[%clk 0:00:16]}  Be6 {[%clk 0:00:13]} 46. e5 {[%clk 0:00:17]}  Kxc2 {[%clk 0:00:13]} 47. Ke7 {[%clk 0:00:18]}  d3 {[%clk 0:00:13]} 48. Kf6 {[%clk 0:00:19]}  d2 {[%clk 0:00:14]} 49. Kg7 {[%clk 0:00:20]}  d1=Q {[%clk 0:00:14]} 50. Kf8 {[%clk 0:00:21]}  Qf3 {[%clk 0:00:15]} 51. Ke7 {[%clk 0:00:21]}  Qd5 {[%clk 0:00:16]} 52. Kf6 {[%clk 0:00:21]}  Qd7 {[%clk 0:00:16]} 53. Kg7 {[%clk 0:00:21]}  Kd3 {[%clk 0:00:16]} 54. Kf6 {[%clk 0:00:22]}  Ke4 {[%clk 0:00:17]} 55. Kg5 {[%clk 0:00:23]}  Kf3 {[%clk 0:00:17]} 56. Kf6 {[%clk 0:00:24]}  Kf4 {[%clk 0:00:17]} 57. Kg7 {[%clk 0:00:24]}  Kf5 {[%clk 0:00:17]} 58. Kg8 {[%clk 0:00:24]}  Kg6 {[%clk 0:00:17]} 59. Kf8 {[%clk 0:00:25]}  Qd8# {[%clk 0:00:17]} 0-1


[Site "https://www.chess.com"]

[Event "Titled Tuesday Blitz October 5 2021"]
[White "Martinez Lopez, David"]
[Black "Silvestre, Christian"]
[WhiteFideId "22235779"]
[BlackFideId "30956269"]
[WhiteElo "2389"]
[BlackElo "2497"]
[Result "1-0"]
[Round "09"]
[TimeControl "180+1"]
[Date "2021.10.05"]
[WhiteClock "0:00:03"]
[BlackClock "0:00:13"]

1. e4 {[%clk 0:03:00]}  c6 {[%clk 0:02:59]} 2. d4 {[%clk 0:03:00]}  d5 {[%clk 0:03:00]} 3. Nd2 {[%clk 0:03:00]}  a6 {[%clk 0:02:59]} 4. Ngf3 {[%clk 0:03:00]}  Bg4 {[%clk 0:02:59]} 5. c3 {[%clk 0:02:57]}  Nf6 {[%clk 0:02:58]} 6. Bd3 {[%clk 0:02:55]}  e6 {[%clk 0:02:56]} 7. O-O {[%clk 0:02:54]}  Nbd7 {[%clk 0:02:53]} 8. e5 {[%clk 0:02:50]}  Ng8 {[%clk 0:02:51]} 9. h3 {[%clk 0:02:50]}  Bh5 {[%clk 0:02:49]} 10. Re1 {[%clk 0:02:50]}  c5 {[%clk 0:02:48]} 11. Nf1 {[%clk 0:02:50]}  Ne7 {[%clk 0:02:46]} 12. Ng3 {[%clk 0:02:49]}  Bg6 {[%clk 0:02:45]} 13. h4 {[%clk 0:02:42]}  Nc6 {[%clk 0:02:37]} 14. h5 {[%clk 0:02:36]}  Bxd3 {[%clk 0:02:34]} 15. Qxd3 {[%clk 0:02:37]}  h6 {[%clk 0:02:35]} 16. Bf4 {[%clk 0:02:27]}  Rc8 {[%clk 0:02:32]} 17. a3 {[%clk 0:02:22]}  Qb6 {[%clk 0:02:30]} 18. b4 {[%clk 0:02:20]}  cxd4 {[%clk 0:02:26]} 19. cxd4 {[%clk 0:02:21]}  Be7 {[%clk 0:02:25]} 20. Rac1 {[%clk 0:02:00]}  Qb5 {[%clk 0:02:24]} 21. Qe3 {[%clk 0:01:39]}  Nb6 {[%clk 0:02:19]} 22. Nd2 {[%clk 0:01:31]}  Kd7 {[%clk 0:02:13]} 23. Ne2 {[%clk 0:01:22]}  Na4 {[%clk 0:01:55]} 24. Nb3 {[%clk 0:01:10]}  b6 {[%clk 0:01:51]} 25. Qg3 {[%clk 0:00:55]}  Na7 {[%clk 0:01:29]} 26. Rxc8 {[%clk 0:00:41]}  Rxc8 {[%clk 0:01:27]} 27. Qxg7 {[%clk 0:00:40]}  Qd3 {[%clk 0:01:15]} 28. Nbc1 {[%clk 0:00:35]}  Qf5 {[%clk 0:01:12]} 29. g4 {[%clk 0:00:21]}  Qe4 {[%clk 0:00:56]} 30. Qxh6 {[%clk 0:00:11]}  Rc2 {[%clk 0:00:51]} 31. Qg7 {[%clk 0:00:07]}  Nc3 {[%clk 0:00:46]} 32. h6 {[%clk 0:00:07]}  Nxe2+ {[%clk 0:00:45]} 33. Nxe2 {[%clk 0:00:07]}  Rxe2 {[%clk 0:00:44]} 34. Rxe2 {[%clk 0:00:07]}  Qxe2 {[%clk 0:00:43]} 35. h7 {[%clk 0:00:07]}  Qe1+ {[%clk 0:00:40]} 36. Kg2 {[%clk 0:00:07]}  Qe4+ {[%clk 0:00:39]} 37. Kg3 {[%clk 0:00:06]}  Nb5 {[%clk 0:00:19]} 38. h8=Q {[%clk 0:00:05]}  Nxd4 {[%clk 0:00:19]} 39. Qxf7 {[%clk 0:00:02]}  Ne2+ {[%clk 0:00:18]} 40. Kh2 {[%clk 0:00:01]}  Nxf4 {[%clk 0:00:15]} 41. Qhe8+ {[%clk 0:00:02]}  Kc7 {[%clk 0:00:13]} 42. Qfxe7# {[%clk 0:00:03]} 1-0


[Site "https://www.chess.com"]

[Event "Titled Tuesday Blitz October 5 2021"]
[White "Nozdrachev, Leonid"]
[Black "Vusatiuk, Vladimir"]
[WhiteFideId "24113433"]
[BlackFideId "14118610"]
[WhiteElo "2124"]
[BlackElo "2167"]
[Result "1-0"]
[Round "09"]
[TimeControl "180+1"]
[Date "2021.10.05"]
[WhiteClock "0:00:31"]
[BlackClock "0:00:01"]

1. e4 {[%clk 0:03:00]}  c5 {[%clk 0:02:57]} 2. c3 {[%clk 0:03:00]}  Nf6 {[%clk 0:02:57]} 3. e5 {[%clk 0:02:59]}  Nd5 {[%clk 0:02:58]} 4. d4 {[%clk 0:02:59]}  cxd4 {[%clk 0:02:58]} 5. Nf3 {[%clk 0:03:00]}  d6 {[%clk 0:02:58]} 6. Bc4 {[%clk 0:02:57]}  dxe5 {[%clk 0:02:58]} 7. Nxe5 {[%clk 0:02:55]}  e6 {[%clk 0:02:49]} 8. O-O {[%clk 0:02:52]}  dxc3 {[%clk 0:02:45]} 9. Nxc3 {[%clk 0:02:49]}  Nc6 {[%clk 0:02:43]} 10. Nxc6 {[%clk 0:02:25]}  bxc6 {[%clk 0:02:44]} 11. Ne4 {[%clk 0:02:25]}  Be7 {[%clk 0:02:37]} 12. Qg4 {[%clk 0:02:24]}  g6 {[%clk 0:02:36]} 13. Qf3 {[%clk 0:02:13]}  f5 {[%clk 0:02:23]} 14. Nc3 {[%clk 0:02:10]}  O-O {[%clk 0:02:22]} 15. Bh6 {[%clk 0:02:09]}  Re8 {[%clk 0:02:21]} 16. Rad1 {[%clk 0:02:09]}  Bf6 {[%clk 0:02:20]} 17. Rfe1 {[%clk 0:02:06]}  Bb7 {[%clk 0:02:06]} 18. Na4 {[%clk 0:02:03]}  Qa5 {[%clk 0:02:02]} 19. b3 {[%clk 0:01:57]}  c5 {[%clk 0:01:47]} 20. h4 {[%clk 0:01:45]}  Qc7 {[%clk 0:01:33]} 21. h5 {[%clk 0:01:32]}  Nc3 {[%clk 0:01:03]} 22. Rxe6 {[%clk 0:01:23]}  Kh8 {[%clk 0:00:38]} 23. Qe3 {[%clk 0:00:59]}  Ne4 {[%clk 0:00:05]} 24. Bf4 {[%clk 0:00:49]}  Qg7 {[%clk 0:00:04]} 25. Nxc5 {[%clk 0:00:45]}  Re7 {[%clk 0:00:01]} 26. Rxe7 {[%clk 0:00:42]}  Qxe7 {[%clk 0:00:02]} 27. Nxb7 {[%clk 0:00:41]}  Qxb7 {[%clk 0:00:01]} 28. Bd5 {[%clk 0:00:41]}  Qd7 {[%clk 0:00:01]} 29. f3 {[%clk 0:00:31]} 1-0


[Site "https://www.chess.com"]

[Event "Titled Tuesday Blitz October 5 2021"]
[White "Oparin, Grigoriy"]
[Black "Timofeev, Artyom"]
[WhiteFideId "24125890"]
[BlackFideId "4140419"]
[WhiteElo "2957"]
[BlackElo "2903"]
[Result "1/2-1/2"]
[Round "09"]
[TimeControl "180+1"]
[Date "2021.10.05"]
[WhiteClock "0:00:06"]
[BlackClock "0:00:42"]

1. Nf3 {[%clk 0:03:00]}  Nf6 {[%clk 0:02:58]} 2. g3 {[%clk 0:03:01]}  b6 {[%clk 0:02:57]} 3. Bg2 {[%clk 0:03:01]}  Bb7 {[%clk 0:02:57]} 4. c4 {[%clk 0:03:02]}  g6 {[%clk 0:02:57]} 5. d4 {[%clk 0:03:02]}  Bg7 {[%clk 0:02:57]} 6. O-O {[%clk 0:03:03]}  O-O {[%clk 0:02:57]} 7. Re1 {[%clk 0:03:04]}  e6 {[%clk 0:02:55]} 8. Bf4 {[%clk 0:03:04]}  d6 {[%clk 0:02:53]} 9. Qc2 {[%clk 0:03:04]}  Be4 {[%clk 0:02:37]} 10. Qc1 {[%clk 0:03:04]}  Nc6 {[%clk 0:02:28]} 11. Nc3 {[%clk 0:03:04]}  Bxf3 {[%clk 0:02:27]} 12. Bxf3 {[%clk 0:03:04]}  Nxd4 {[%clk 0:02:27]} 13. Bxa8 {[%clk 0:03:04]}  Qxa8 {[%clk 0:02:28]} 14. Qd2 {[%clk 0:02:58]}  e5 {[%clk 0:02:15]} 15. Be3 {[%clk 0:02:57]}  c5 {[%clk 0:02:14]} 16. Bg5 {[%clk 0:02:41]}  Ne4 {[%clk 0:02:14]} 17. Nxe4 {[%clk 0:02:41]}  Qxe4 {[%clk 0:02:13]} 18. Be3 {[%clk 0:02:39]}  Re8 {[%clk 0:02:11]} 19. Bxd4 {[%clk 0:02:31]}  exd4 {[%clk 0:02:11]} 20. Qd3 {[%clk 0:02:30]}  Qe6 {[%clk 0:02:10]} 21. Rad1 {[%clk 0:02:25]}  d5 {[%clk 0:02:09]} 22. b3 {[%clk 0:02:24]}  dxc4 {[%clk 0:02:08]} 23. bxc4 {[%clk 0:02:25]}  Qc6 {[%clk 0:02:07]} 24. e4 {[%clk 0:02:20]}  dxe3 {[%clk 0:01:54]} 25. Rxe3 {[%clk 0:02:19]}  Bd4 {[%clk 0:01:50]} 26. Rxe8+ {[%clk 0:02:16]}  Qxe8 {[%clk 0:01:51]} 27. Kg2 {[%clk 0:02:09]}  Kg7 {[%clk 0:01:50]} 28. Rd2 {[%clk 0:01:56]}  Qe6 {[%clk 0:01:50]} 29. Re2 {[%clk 0:01:55]}  Qd7 {[%clk 0:01:42]} 30. h4 {[%clk 0:01:52]}  h5 {[%clk 0:01:42]} 31. Qe4 {[%clk 0:01:49]}  a6 {[%clk 0:01:42]} 32. Qe8 {[%clk 0:01:48]}  Qb7+ {[%clk 0:01:29]} 33. Qe4 {[%clk 0:01:47]}  Qd7 {[%clk 0:01:29]} 34. Qd5 {[%clk 0:01:47]}  Qc7 {[%clk 0:01:28]} 35. a4 {[%clk 0:01:37]}  Bf6 {[%clk 0:01:24]} 36. Re8 {[%clk 0:01:34]}  Bd4 {[%clk 0:01:18]} 37. Ra8 {[%clk 0:01:32]}  Qe7 {[%clk 0:01:14]} 38. Qf3 {[%clk 0:00:22]}  Qe6 {[%clk 0:01:11]} 39. Rxa6 {[%clk 0:00:21]}  Qxc4 {[%clk 0:01:12]} 40. Ra7 {[%clk 0:00:19]}  Qe6 {[%clk 0:01:10]} 41. Rc7 {[%clk 0:00:20]}  Qa2 {[%clk 0:00:53]} 42. Rb7 {[%clk 0:00:15]}  Qe6 {[%clk 0:00:50]} 43. Ra7 {[%clk 0:00:14]}  Qc4 {[%clk 0:00:48]} 44. Rb7 {[%clk 0:00:11]}  Qe6 {[%clk 0:00:47]} 45. Rc7 {[%clk 0:00:10]}  Qa2 {[%clk 0:00:46]} 46. Re7 {[%clk 0:00:10]}  Qc4 {[%clk 0:00:44]} 47. Rb7 {[%clk 0:00:06]}  Qe6 {[%clk 0:00:42]} 1/2-1/2


[Site "https://www.chess.com"]

[Event "Titled Tuesday Blitz October 5 2021"]
[White "Pasti, Aron"]
[Black "Aldokhin, Ivan"]
[WhiteFideId "785857"]
[BlackFideId "24115720"]
[WhiteElo "2080"]
[BlackElo "2231"]
[Result "0-1"]
[Round "09"]
[TimeControl "180+1"]
[Date "2021.10.05"]
[WhiteClock "0:00:03"]
[BlackClock "0:00:12"]

1. e4 {[%clk 0:02:50]}  c5 {[%clk 0:02:59]} 2. Nf3 {[%clk 0:02:50]}  e6 {[%clk 0:03:00]} 3. d4 {[%clk 0:02:50]}  cxd4 {[%clk 0:03:00]} 4. Nxd4 {[%clk 0:02:50]}  Nc6 {[%clk 0:03:00]} 5. Nc3 {[%clk 0:02:50]}  Qc7 {[%clk 0:03:00]} 6. Be3 {[%clk 0:02:50]}  a6 {[%clk 0:03:00]} 7. Qf3 {[%clk 0:02:50]}  Nf6 {[%clk 0:02:59]} 8. O-O-O {[%clk 0:02:50]}  b5 {[%clk 0:02:52]} 9. Nxc6 {[%clk 0:02:48]}  Qxc6 {[%clk 0:02:47]} 10. Bd3 {[%clk 0:02:41]}  Bb7 {[%clk 0:02:44]} 11. Kb1 {[%clk 0:01:34]}  Bb4 {[%clk 0:02:35]} 12. Bd4 {[%clk 0:01:28]}  Bxc3 {[%clk 0:02:09]} 13. Bxc3 {[%clk 0:01:29]}  Nxe4 {[%clk 0:02:08]} 14. Bxg7 {[%clk 0:01:25]}  Rg8 {[%clk 0:01:51]} 15. Be5 {[%clk 0:00:59]}  Rxg2 {[%clk 0:01:19]} 16. Qh5 {[%clk 0:00:17]}  Nxf2 {[%clk 0:01:07]} 17. Qxh7 {[%clk 0:00:09]}  O-O-O {[%clk 0:01:07]} 18. Qxf7 {[%clk 0:00:04]}  Nxh1 {[%clk 0:01:01]} 19. Rxh1 {[%clk 0:00:03]}  Rf2 {[%clk 0:00:57]} 20. Qxf2 {[%clk 0:00:03]}  Qxh1+ {[%clk 0:00:57]} 21. Bf1 {[%clk 0:00:03]}  d6 {[%clk 0:00:50]} 22. Bg3 {[%clk 0:00:02]}  Qd5 {[%clk 0:00:45]} 23. b3 {[%clk 0:00:03]}  Kb8 {[%clk 0:00:39]} 24. Bh3 {[%clk 0:00:03]}  e5 {[%clk 0:00:34]} 25. Qf6 {[%clk 0:00:02]}  Rg8 {[%clk 0:00:17]} 26. Be6 {[%clk 0:00:02]}  Qd1+ {[%clk 0:00:17]} 27. Kb2 {[%clk 0:00:03]}  Qd4+ {[%clk 0:00:17]} 28. Ka3 {[%clk 0:00:02]}  b4+ {[%clk 0:00:13]} 29. Ka4 {[%clk 0:00:03]}  Bc6+ {[%clk 0:00:13]} 30. Ka5 {[%clk 0:00:03]}  Qc5+ {[%clk 0:00:12]} 31. Kxa6 {[%clk 0:00:03]}  Bb7# {[%clk 0:00:12]} 0-1


[Site "https://www.chess.com"]

[Event "Titled Tuesday Blitz October 5 2021"]
[White "Pridorozhni, Aleksei"]
[Black "Kadam, Om Manish"]
[WhiteFideId "4127870"]
[BlackFideId "45076294"]
[WhiteElo "2849"]
[BlackElo "2659"]
[Result "1-0"]
[Round "09"]
[TimeControl "180+1"]
[Date "2021.10.05"]
[WhiteClock "0:02:15"]
[BlackClock "0:01:50"]

1. e4 {[%clk 0:03:00]}  c6 {[%clk 0:03:00]} 2. Nc3 {[%clk 0:02:59]}  d5 {[%clk 0:02:58]} 3. Qe2 {[%clk 0:02:59]}  d4 {[%clk 0:02:56]} 4. Nd1 {[%clk 0:02:59]}  e5 {[%clk 0:02:56]} 5. g3 {[%clk 0:03:00]}  g6 {[%clk 0:02:53]} 6. d3 {[%clk 0:02:59]}  Bg7 {[%clk 0:02:54]} 7. f4 {[%clk 0:03:00]}  Nd7 {[%clk 0:02:51]} 8. Nf3 {[%clk 0:03:00]}  Ne7 {[%clk 0:02:50]} 9. Bg2 {[%clk 0:03:01]}  Kf8 {[%clk 0:02:50]} 10. O-O {[%clk 0:03:01]}  Kg8 {[%clk 0:02:47]} 11. Nh4 {[%clk 0:02:56]}  f6 {[%clk 0:02:44]} 12. c4 {[%clk 0:02:50]}  h6 {[%clk 0:02:42]} 13. Bd2 {[%clk 0:02:41]}  Kh7 {[%clk 0:02:41]} 14. Nf2 {[%clk 0:02:33]}  Rf8 {[%clk 0:02:29]} 15. f5 {[%clk 0:02:32]}  g5 {[%clk 0:02:29]} 16. Nf3 {[%clk 0:02:32]}  Qe8 {[%clk 0:02:25]} 17. h4 {[%clk 0:02:32]}  g4 {[%clk 0:02:23]} 18. Nxg4 {[%clk 0:02:32]}  h5 {[%clk 0:02:24]} 19. Nf2 {[%clk 0:02:30]}  Rg8 {[%clk 0:02:24]} 20. Kh2 {[%clk 0:02:26]}  Bf8 {[%clk 0:02:23]} 21. Rg1 {[%clk 0:02:26]}  Qf7 {[%clk 0:02:23]} 22. Bh3 {[%clk 0:02:25]}  b6 {[%clk 0:02:08]} 23. g4 {[%clk 0:02:22]}  hxg4 {[%clk 0:02:06]} 24. Bxg4 {[%clk 0:02:22]}  Bb7 {[%clk 0:02:06]} 25. Rg3 {[%clk 0:02:21]}  Bh6 {[%clk 0:01:57]} 26. Bxh6 {[%clk 0:02:19]}  Kxh6 {[%clk 0:01:58]} 27. Rag1 {[%clk 0:02:19]}  Rg7 {[%clk 0:01:58]} 28. Qd2+ {[%clk 0:02:16]}  Kh7 {[%clk 0:01:57]} 29. Bh5 {[%clk 0:02:16]}  Rxg3 {[%clk 0:01:49]} 30. Bxf7 {[%clk 0:02:15]}  Rxf3 {[%clk 0:01:50]} 31. Qe2 {[%clk 0:02:15]} 1-0


[Site "https://www.chess.com"]

[Event "Titled Tuesday Blitz October 5 2021"]
[White "Rasulov, Vugar"]
[Black "Djordjevic, Vuk"]
[WhiteFideId "13402390"]
[BlackFideId "902098"]
[WhiteElo "2827"]
[BlackElo "2702"]
[Result "1-0"]
[Round "09"]
[TimeControl "180+1"]
[Date "2021.10.05"]
[WhiteClock "0:02:08"]
[BlackClock "0:01:54"]

1. d4 {[%clk 0:03:00]}  Nf6 {[%clk 0:02:58]} 2. c4 {[%clk 0:03:01]}  e6 {[%clk 0:02:59]} 3. Nf3 {[%clk 0:03:01]}  b6 {[%clk 0:02:59]} 4. g3 {[%clk 0:03:01]}  Ba6 {[%clk 0:02:59]} 5. Qc2 {[%clk 0:03:01]}  Bb7 {[%clk 0:02:57]} 6. Bg2 {[%clk 0:02:58]}  Be7 {[%clk 0:02:53]} 7. O-O {[%clk 0:02:58]}  O-O {[%clk 0:02:53]} 8. Nc3 {[%clk 0:02:56]}  c5 {[%clk 0:02:51]} 9. d5 {[%clk 0:02:52]}  d6 {[%clk 0:02:52]} 10. dxe6 {[%clk 0:02:51]}  fxe6 {[%clk 0:02:51]} 11. Rd1 {[%clk 0:02:43]}  Qc8 {[%clk 0:02:46]} 12. Bh3 {[%clk 0:02:34]}  Bxf3 {[%clk 0:02:36]} 13. exf3 {[%clk 0:02:35]}  Nc6 {[%clk 0:02:36]} 14. Qe2 {[%clk 0:02:31]}  Kf7 {[%clk 0:02:27]} 15. Ne4 {[%clk 0:02:29]}  Nxe4 {[%clk 0:02:21]} 16. Qxe4 {[%clk 0:02:30]}  Nd4 {[%clk 0:02:15]} 17. Bf4 {[%clk 0:02:10]}  Qd7 {[%clk 0:02:02]} 18. Rxd4 {[%clk 0:02:08]}  cxd4 {[%clk 0:01:54]} 19. Re1 {[%clk 0:02:08]} 1-0


[Site "https://www.chess.com"]

[Event "Titled Tuesday Blitz October 5 2021"]
[White "Rosenberg, Evan S"]
[Black "Dang, Hoang Son"]
[WhiteFideId "2019299"]
[BlackFideId "12402435"]
[WhiteElo "2270"]
[BlackElo "2248"]
[Result "0-1"]
[Round "09"]
[TimeControl "180+1"]
[Date "2021.10.05"]
[WhiteClock "0:00:09"]
[BlackClock "0:00:16"]

1. Nf3 {[%clk 0:03:00]}  g6 {[%clk 0:02:52]} 2. e4 {[%clk 0:03:00]}  Bg7 {[%clk 0:02:53]} 3. d4 {[%clk 0:03:00]}  d6 {[%clk 0:02:54]} 4. Bc4 {[%clk 0:02:57]}  Nf6 {[%clk 0:02:54]} 5. Qe2 {[%clk 0:02:57]}  O-O {[%clk 0:02:49]} 6. e5 {[%clk 0:02:53]}  dxe5 {[%clk 0:02:49]} 7. dxe5 {[%clk 0:02:54]}  Nd5 {[%clk 0:02:49]} 8. O-O {[%clk 0:02:53]}  c6 {[%clk 0:02:48]} 9. h3 {[%clk 0:02:51]}  Be6 {[%clk 0:02:48]} 10. Bb3 {[%clk 0:02:48]}  Nd7 {[%clk 0:02:47]} 11. Rd1 {[%clk 0:02:40]}  Qc7 {[%clk 0:02:47]} 12. c4 {[%clk 0:02:31]}  Nb4 {[%clk 0:02:46]} 13. Bf4 {[%clk 0:02:25]}  a5 {[%clk 0:02:46]} 14. a3 {[%clk 0:02:25]}  Nc5 {[%clk 0:02:46]} 15. axb4 {[%clk 0:02:19]}  Nxb3 {[%clk 0:02:46]} 16. Ra3 {[%clk 0:02:16]}  a4 {[%clk 0:02:45]} 17. Nc3 {[%clk 0:02:05]}  Qb6 {[%clk 0:02:33]} 18. Rxa4 {[%clk 0:01:50]}  Rxa4 {[%clk 0:02:31]} 19. Nxa4 {[%clk 0:01:51]}  Qxb4 {[%clk 0:02:31]} 20. Nc3 {[%clk 0:01:46]}  Bxc4 {[%clk 0:02:30]} 21. Qe3 {[%clk 0:01:35]}  Be6 {[%clk 0:02:20]} 22. Ng5 {[%clk 0:01:22]}  Nc5 {[%clk 0:02:18]} 23. Nxe6 {[%clk 0:01:17]}  Nxe6 {[%clk 0:02:17]} 24. Bh6 {[%clk 0:01:06]}  Qxb2 {[%clk 0:02:15]} 25. Bxg7 {[%clk 0:01:05]}  Kxg7 {[%clk 0:02:14]} 26. Rb1 {[%clk 0:01:04]}  Qa3 {[%clk 0:02:01]} 27. Rxb7 {[%clk 0:01:04]}  Rd8 {[%clk 0:01:59]} 28. Ra7 {[%clk 0:00:58]}  Qb4 {[%clk 0:01:53]} 29. g3 {[%clk 0:00:52]}  h5 {[%clk 0:01:46]} 30. Kg2 {[%clk 0:00:48]}  h4 {[%clk 0:01:46]} 31. Ra4 {[%clk 0:00:38]}  Qb7 {[%clk 0:01:23]} 32. Rxh4 {[%clk 0:00:37]}  c5+ {[%clk 0:01:24]} 33. Kh2 {[%clk 0:00:37]}  g5 {[%clk 0:01:21]} 34. Ra4 {[%clk 0:00:31]}  Rd4 {[%clk 0:01:16]} 35. Ra2 {[%clk 0:00:26]}  c4 {[%clk 0:01:16]} 36. Ne2 {[%clk 0:00:15]}  Rd1 {[%clk 0:01:14]} 37. Ng1 {[%clk 0:00:13]}  Qd5 {[%clk 0:01:11]} 38. Re2 {[%clk 0:00:12]}  Rd3 {[%clk 0:01:08]} 39. Qe4 {[%clk 0:00:12]}  c3 {[%clk 0:01:02]} 40. Qxd5 {[%clk 0:00:11]}  Rxd5 {[%clk 0:01:02]} 41. Rc2 {[%clk 0:00:11]}  Rd3 {[%clk 0:00:59]} 42. Ne2 {[%clk 0:00:07]}  Rd2 {[%clk 0:00:59]} 43. Rxd2 {[%clk 0:00:04]}  cxd2 {[%clk 0:01:00]} 44. Nc3 {[%clk 0:00:05]}  Kg6 {[%clk 0:00:55]} 45. Kg2 {[%clk 0:00:05]}  Kf5 {[%clk 0:00:55]} 46. Kf3 {[%clk 0:00:05]}  Nd4+ {[%clk 0:00:50]} 47. Ke3 {[%clk 0:00:06]}  Nb3 {[%clk 0:00:47]} 48. f4 {[%clk 0:00:05]}  gxf4+ {[%clk 0:00:47]} 49. gxf4 {[%clk 0:00:05]}  e6 {[%clk 0:00:47]} 50. Nd1 {[%clk 0:00:05]}  Kg6 {[%clk 0:00:47]} 51. Kd3 {[%clk 0:00:03]}  Kf5 {[%clk 0:00:46]} 52. Kc3 {[%clk 0:00:03]}  Nc5 {[%clk 0:00:45]} 53. Kxd2 {[%clk 0:00:03]}  Kxf4 {[%clk 0:00:45]} 54. h4 {[%clk 0:00:03]}  Kxe5 {[%clk 0:00:45]} 55. Ke3 {[%clk 0:00:03]}  Kf5 {[%clk 0:00:45]} 56. Kd4 {[%clk 0:00:03]}  Nd7 {[%clk 0:00:44]} 57. Ne3+ {[%clk 0:00:03]}  Kf4 {[%clk 0:00:45]} 58. Nc4 {[%clk 0:00:03]}  e5+ {[%clk 0:00:44]} 59. Kd5 {[%clk 0:00:03]}  e4 {[%clk 0:00:44]} 60. Kd6 {[%clk 0:00:02]}  Nb8 {[%clk 0:00:21]} 61. Ke7 {[%clk 0:00:02]}  f5 {[%clk 0:00:20]} 62. Kf6 {[%clk 0:00:01]}  Nd7+ {[%clk 0:00:20]} 63. Kg6 {[%clk 0:00:01]}  Kg4 {[%clk 0:00:16]} 64. Ne5+ {[%clk 0:00:02]}  Nxe5+ {[%clk 0:00:16]} 65. Kf6 {[%clk 0:00:02]}  Nf3 {[%clk 0:00:13]} 66. h5 {[%clk 0:00:03]}  Kxh5 {[%clk 0:00:13]} 67. Kxf5 {[%clk 0:00:04]}  e3 {[%clk 0:00:14]} 68. Kf4 {[%clk 0:00:05]}  e2 {[%clk 0:00:14]} 69. Kxf3 {[%clk 0:00:05]}  e1=Q {[%clk 0:00:14]} 70. Kg2 {[%clk 0:00:06]}  Qe3 {[%clk 0:00:14]} 71. Kh2 {[%clk 0:00:07]}  Kg4 {[%clk 0:00:14]} 72. Kg2 {[%clk 0:00:08]}  Qe2+ {[%clk 0:00:15]} 73. Kh1 {[%clk 0:00:08]}  Kg3 {[%clk 0:00:16]} 74. Kg1 {[%clk 0:00:09]}  Qe1# {[%clk 0:00:16]} 0-1


[Site "https://www.chess.com"]